[Event "*** Titled Tuesday Blitz"]
[Site "Chess.com"]
[Date "2020.05.05"]
[Round "7"]
[White "LiamPutnam2008"]
[Black "zmeeed67"]
[Result "0-1"]
[WhiteElo "2526"]
[BlackElo "2401"]
[TimeControl "180+1"]
[EndTime "11:19:54 PDT"]
[Termination "zmeeed67 won by checkmate"]

1. Nf3 {[%clk 0:02:52.7]} 1... d5 {[%clk 0:02:59.8]} 2. g3 {[%clk 0:02:50.9]}
2... Nf6 {[%clk 0:02:59.9]} 3. Bg2 {[%clk 0:02:50.3]} 3... c5 {[%clk 0:03:00.4]}
4. O-O {[%clk 0:02:50.7]} 4... Nc6 {[%clk 0:03:00.9]} 5. d4 {[%clk 0:02:49.9]}
5... Bg4 {[%clk 0:03:01]} 6. c4 {[%clk 0:02:47.7]} 6... Bxf3 {[%clk 0:03:00.2]}
7. Bxf3 {[%clk 0:02:47]} 7... cxd4 {[%clk 0:03:00.1]} 8. cxd5 {[%clk 0:02:33.8]}
8... Nxd5 {[%clk 0:03:01]} 9. Qb3 {[%clk 0:02:33.5]} 9... Nb6 {[%clk 0:03:00.4]}
10. Rd1 {[%clk 0:02:32.2]} 10... e6 {[%clk 0:02:59.3]} 11. Nd2 {[%clk
0:02:28.4]} 11... Be7 {[%clk 0:02:57.6]} 12. Nc4 {[%clk 0:02:23.2]} 12... O-O
{[%clk 0:02:51.7]} 13. Bf4 {[%clk 0:02:04.6]} 13... Nxc4 {[%clk 0:02:19.5]} 14.
Qxc4 {[%clk 0:02:05.5]} 14... Bf6 {[%clk 0:02:18.6]} 15. Bxc6 {[%clk 0:01:54.1]}
15... Rc8 {[%clk 0:02:14.7]} 16. Qa4 {[%clk 0:01:47.1]} 16... bxc6 {[%clk
0:01:41.2]} 17. Qxa7 {[%clk 0:01:46.7]} 17... Qd5 {[%clk 0:01:35.7]} 18. Qa6
{[%clk 0:01:28.2]} 18... e5 {[%clk 0:01:19.7]} 19. Bd2 {[%clk 0:01:24.3]} 19...
e4 {[%clk 0:01:18.6]} 20. Rac1 {[%clk 0:01:17.5]} 20... Rfe8 {[%clk 0:01:11.7]}
21. Qc4 {[%clk 0:01:07.2]} 21... Qf5 {[%clk 0:01:01.4]} 22. a4 {[%clk
0:00:58.2]} 22... h5 {[%clk 0:01:00.6]} 23. Be1 {[%clk 0:00:51.2]} 23... h4
{[%clk 0:00:53.3]} 24. a5 {[%clk 0:00:50.1]} 24... h3 {[%clk 0:00:35.8]} 25. a6
{[%clk 0:00:38.2]} 25... d3 {[%clk 0:00:34.9]} 26. Bc3 {[%clk 0:00:27.6]} 26...
e3 {[%clk 0:00:18.1]} 27. f3 {[%clk 0:00:23.8]} 27... d2 {[%clk 0:00:18.1]} 28.
Ra1 {[%clk 0:00:22.3]} 28... Bxc3 {[%clk 0:00:10.6]} 29. Qxc3 {[%clk 0:00:23.2]}
29... Qb5 {[%clk 0:00:10.2]} 30. Kf1 {[%clk 0:00:19.8]} 30... Ra8 {[%clk
0:00:10.2]} 31. Ra5 {[%clk 0:00:18.9]} 31... Qb6 {[%clk 0:00:06.5]} 32. Qa3
{[%clk 0:00:16.3]} 32... c5 {[%clk 0:00:03.3]} 33. b3 {[%clk 0:00:11.4]} 33...
Reb8 {[%clk 0:00:02]} 34. Qxc5 {[%clk 0:00:08.3]} 34... Qxc5 {[%clk 0:00:02]}
35. Rxc5 {[%clk 0:00:09.2]} 35... Rxa6 {[%clk 0:00:02.6]} 36. Rc3 {[%clk
0:00:09.5]} 36... Re6 {[%clk 0:00:02.5]} 37. Rd3 {[%clk 0:00:09.2]} 37... f5
{[%clk 0:00:02.4]} 38. Rb1 {[%clk 0:00:08.8]} 38... g5 {[%clk 0:00:02.5]} 39.
Rd1 {[%clk 0:00:08.3]} 39... f4 {[%clk 0:00:02.5]} 40. g4 {[%clk 0:00:08.1]}
40... Rc8 {[%clk 0:00:02.2]} 41. R3xd2 {[%clk 0:00:06.5]} 41... exd2 {[%clk
0:00:01.9]} 42. Rxd2 {[%clk 0:00:07.4]} 42... Rc1+ {[%clk 0:00:02.3]} 43. Kf2
{[%clk 0:00:07.6]} 43... Rc3 {[%clk 0:00:03.2]} 44. Rd8+ {[%clk 0:00:07.9]}
44... Kf7 {[%clk 0:00:03.1]} 45. Rb8 {[%clk 0:00:08.8]} 45... Ree3 {[%clk
0:00:02.7]} 46. Rb7+ {[%clk 0:00:08.8]} 46... Ke6 {[%clk 0:00:03.1]} 47. Rb6+
{[%clk 0:00:09.4]} 47... Kd5 {[%clk 0:00:03.6]} 48. Rb5+ {[%clk 0:00:09]} 48...
Rc5 {[%clk 0:00:04.1]} 49. Rb8 {[%clk 0:00:08.2]} 49... Rc2 {[%clk 0:00:04.5]}
50. Rd8+ {[%clk 0:00:08.5]} 50... Ke6 {[%clk 0:00:04.3]} 51. Re8+ {[%clk
0:00:07.5]} 51... Kf7 {[%clk 0:00:04.6]} 52. Rxe3 {[%clk 0:00:06.3]} 52... fxe3+
{[%clk 0:00:05.5]} 53. Kxe3 {[%clk 0:00:07.2]} 53... Rc3+ {[%clk 0:00:06]} 54.
Ke4 {[%clk 0:00:07.3]} 54... Rxb3 {[%clk 0:00:06.9]} 55. Kf5 {[%clk 0:00:07.2]}
55... Rb5+ {[%clk 0:00:07.3]} 56. Ke4 {[%clk 0:00:07.2]} 56... Ke6 {[%clk
0:00:08.2]} 57. Ke3 {[%clk 0:00:07.3]} 57... Ke5 {[%clk 0:00:08]} 58. Kf2 {[%clk
0:00:07.9]} 58... Rb2 {[%clk 0:00:07.9]} 59. Ke3 {[%clk 0:00:07.7]} 59... Rb3+
{[%clk 0:00:08.1]} 60. Kf2 {[%clk 0:00:07.4]} 60... Kf4 {[%clk 0:00:09]} 61. Kf1
{[%clk 0:00:05.3]} 61... Ke3 {[%clk 0:00:06.9]} 62. Kg1 {[%clk 0:00:05.2]} 62...
Rb1# {[%clk 0:00:07.3]} 0-1

[Event "*** Titled Tuesday Blitz"]
[Site "Chess.com"]
[Date "2020.05.05"]
[Round "7"]
[White "Rafael_Ventura"]
[Black "Kavyev_Ruslan"]
[Result "1-0"]
[WhiteElo "2301"]
[BlackElo "2496"]
[TimeControl "180+1"]
[EndTime "11:19:54 PDT"]
[Termination "Rafael_Ventura won by resignation"]

1. e4 {[%clk 0:03:00.9]} 1... c5 {[%clk 0:03:00]} 2. c4 {[%clk 0:03:00.6]} 2...
d6 {[%clk 0:02:58.9]} 3. Ne2 {[%clk 0:03:00.7]} 3... Nc6 {[%clk 0:02:55.9]} 4.
d4 {[%clk 0:03:00.4]} 4... cxd4 {[%clk 0:02:54.7]} 5. Nxd4 {[%clk 0:03:01.3]}
5... Nf6 {[%clk 0:02:52.4]} 6. Nc3 {[%clk 0:03:01.3]} 6... g6 {[%clk 0:02:44.2]}
7. Be3 {[%clk 0:03:00.7]} 7... Bd7 {[%clk 0:02:44.3]} 8. f3 {[%clk 0:03:00.9]}
8... Bg7 {[%clk 0:02:45]} 9. Qd2 {[%clk 0:03:01.2]} 9... O-O {[%clk 0:02:45.9]}
10. Rc1 {[%clk 0:03:01.2]} 10... a5 {[%clk 0:02:41.7]} 11. b3 {[%clk 0:03:01.4]}
11... Nxd4 {[%clk 0:02:42.1]} 12. Bxd4 {[%clk 0:03:00.7]} 12... Bc6 {[%clk
0:02:43]} 13. Be3 {[%clk 0:03:01]} 13... Nd7 {[%clk 0:02:43.5]} 14. Nb5 {[%clk
0:02:59]} 14... Nc5 {[%clk 0:02:39.5]} 15. Nd4 {[%clk 0:02:59.3]} 15... Bd7
{[%clk 0:02:33.9]} 16. Be2 {[%clk 0:02:58.7]} 16... Qc7 {[%clk 0:02:23.9]} 17.
O-O {[%clk 0:02:57.9]} 17... Rfc8 {[%clk 0:02:23.5]} 18. Rfd1 {[%clk 0:02:55.1]}
18... Ne6 {[%clk 0:02:17.7]} 19. Nb5 {[%clk 0:02:40.5]} 19... Bxb5 {[%clk
0:02:15.6]} 20. cxb5 {[%clk 0:02:41.2]} 20... Qd7 {[%clk 0:02:15.2]} 21. a4
{[%clk 0:02:37.1]} 21... Rxc1 {[%clk 0:02:14.4]} 22. Rxc1 {[%clk 0:02:36.9]}
22... Rc8 {[%clk 0:02:15.3]} 23. Rxc8+ {[%clk 0:02:29.2]} 23... Qxc8 {[%clk
0:02:16.2]} 24. Qxa5 {[%clk 0:02:29.5]} 24... Bd4 {[%clk 0:02:16.9]} 25. Qd2
{[%clk 0:02:26.8]} 25... Qc5 {[%clk 0:02:08.4]} 26. Kf2 {[%clk 0:02:26.1]} 26...
h5 {[%clk 0:01:59.5]} 27. Bc4 {[%clk 0:02:25.1]} 27... Bxe3+ {[%clk 0:01:58.2]}
28. Qxe3 {[%clk 0:02:24.9]} 28... Nd4 {[%clk 0:01:59.1]} 29. g3 {[%clk
0:02:06.5]} 29... e5 {[%clk 0:01:59.1]} 30. Kg2 {[%clk 0:02:06.4]} 30... Qa3
{[%clk 0:01:53.4]} 31. Kh3 {[%clk 0:01:37.5]} 31... Kg7 {[%clk 0:01:53.2]} 32.
Bd5 {[%clk 0:01:33.4]} 32... b6 {[%clk 0:01:52.2]} 33. Qc3 {[%clk 0:01:32.5]}
33... Qc5 {[%clk 0:00:34.7]} 34. Qxc5 {[%clk 0:01:31.9]} 34... dxc5 {[%clk
0:00:35.6]} 35. Bc6 {[%clk 0:01:32.5]} 35... Nxb3 {[%clk 0:00:26.7]} 36. Kg2
{[%clk 0:01:32.8]} 36... Kf6 {[%clk 0:00:18.8]} 37. Kf2 {[%clk 0:01:31.7]} 37...
Ke7 {[%clk 0:00:19]} 38. Ke3 {[%clk 0:01:30]} 38... Nd4 {[%clk 0:00:18.2]} 39.
Bd5 {[%clk 0:01:28]} 39... f6 {[%clk 0:00:18.1]} 40. Bc4 {[%clk 0:01:25.8]}
40... Kd6 {[%clk 0:00:18]} 41. Bf7 {[%clk 0:01:24.2]} 41... g5 {[%clk 0:00:13]}
42. Bxh5 {[%clk 0:01:24.1]} 42... c4 {[%clk 0:00:13.6]} 43. Bf7 {[%clk
0:01:23.1]} 43... Kc5 {[%clk 0:00:12.7]} 44. h4 {[%clk 0:01:22.3]} 44... gxh4
{[%clk 0:00:12.6]} 45. gxh4 {[%clk 0:01:22.5]} 45... c3 {[%clk 0:00:12.8]} 46.
Kd3 {[%clk 0:01:22.4]} 46... Nxf3 {[%clk 0:00:12.6]} 47. h5 {[%clk 0:01:20.1]}
47... Kb4 {[%clk 0:00:12.7]} 48. Kc2 {[%clk 0:01:09.2]} 48... Ng5 {[%clk
0:00:11.4]} 49. Be8 {[%clk 0:01:09.2]} 49... Nxe4 {[%clk 0:00:10.8]} 50. h6
{[%clk 0:01:09.8]} 50... Ng5 {[%clk 0:00:11.2]} 51. Bg6 {[%clk 0:01:09.7]} 51...
Kxa4 {[%clk 0:00:11.7]} 52. Be8 {[%clk 0:01:08.1]} 52... Kb4 {[%clk 0:00:10.3]}
53. Bg6 {[%clk 0:01:06.3]} 53... e4 {[%clk 0:00:10.2]} 54. Bxe4 {[%clk
0:01:04.2]} 54... Kxb5 {[%clk 0:00:09.5]} 55. h7 {[%clk 0:00:58.7]} 55... Nf7
{[%clk 0:00:09.3]} 56. Kxc3 {[%clk 0:00:57.6]} 56... Kc5 {[%clk 0:00:08.8]} 57.
Bg6 {[%clk 0:00:55]} 57... Nh8 {[%clk 0:00:08.6]} 58. Bf5 {[%clk 0:00:55.2]}
58... Kd6 {[%clk 0:00:08.9]} 59. Kd4 {[%clk 0:00:54.6]} 59... Nf7 {[%clk
0:00:07.5]} 60. Bg6 {[%clk 0:00:53.7]} 60... Nh8 {[%clk 0:00:08.2]} 61. Bh5
{[%clk 0:00:52.4]} 61... Ke6 {[%clk 0:00:07.9]} 62. Ke4 {[%clk 0:00:52.9]} 62...
b5 {[%clk 0:00:07.9]} 63. Kf4 {[%clk 0:00:45.4]} 63... b4 {[%clk 0:00:07.9]} 64.
Bd1 {[%clk 0:00:43.6]} 64... Kd5 {[%clk 0:00:07]} 65. Kf5 {[%clk 0:00:42]} 65...
Kd4 {[%clk 0:00:07]} 66. Kxf6 {[%clk 0:00:41.5]} 66... Kc3 {[%clk 0:00:07.5]}
67. Kg7 {[%clk 0:00:41.7]} 67... Kd2 {[%clk 0:00:08.4]} 68. Ba4 {[%clk
0:00:41.3]} 68... Kc3 {[%clk 0:00:08.2]} 69. Kxh8 {[%clk 0:00:40.4]} 69... Kc4
{[%clk 0:00:08.8]} 70. Kg7 {[%clk 0:00:40.6]} 70... b3 {[%clk 0:00:09.7]} 71.
Bxb3+ {[%clk 0:00:40.9]} 1-0

[Event "*** Titled Tuesday Blitz"]
[Site "Chess.com"]
[Date "2020.05.05"]
[Round "7"]
[White "jfriedel"]
[Black "EugeneRougon"]
[Result "0-1"]
[WhiteElo "2570"]
[BlackElo "2756"]
[TimeControl "180+1"]
[EndTime "11:19:56 PDT"]
[Termination "EugeneRougon won by resignation"]

1. Nf3 {[%clk 0:03:00.9]} 1... d5 {[%clk 0:02:58.1]} 2. g3 {[%clk 0:02:59.1]}
2... Bg4 {[%clk 0:02:57.6]} 3. Bg2 {[%clk 0:02:59.1]} 3... c6 {[%clk 0:02:54.2]}
4. O-O {[%clk 0:02:57.5]} 4... Nd7 {[%clk 0:02:53.6]} 5. c4 {[%clk 0:02:52.6]}
5... Bxf3 {[%clk 0:02:51.7]} 6. Bxf3 {[%clk 0:02:50.5]} 6... Ne5 {[%clk
0:02:51.8]} 7. cxd5 {[%clk 0:02:21.4]} 7... Nxf3+ {[%clk 0:02:51.5]} 8. exf3
{[%clk 0:02:22.3]} 8... Qxd5 {[%clk 0:02:52.1]} 9. Nc3 {[%clk 0:02:22.4]} 9...
Qd7 {[%clk 0:02:51]} 10. d4 {[%clk 0:02:21.8]} 10... e6 {[%clk 0:02:47.9]} 11.
Re1 {[%clk 0:02:20]} 11... Nf6 {[%clk 0:02:46.9]} 12. Bg5 {[%clk 0:02:14.8]}
12... Nd5 {[%clk 0:02:46.7]} 13. Qb3 {[%clk 0:02:04.4]} 13... Be7 {[%clk
0:02:24.6]} 14. Bxe7 {[%clk 0:01:41.2]} 14... Nxe7 {[%clk 0:02:24.2]} 15. Ne4
{[%clk 0:01:37.8]} 15... O-O {[%clk 0:02:14.3]} 16. Nc5 {[%clk 0:00:55.5]} 16...
Qxd4 {[%clk 0:02:12.4]} 17. Nxb7 {[%clk 0:00:52.3]} 17... Rab8 {[%clk
0:02:03.5]} 18. Rad1 {[%clk 0:00:50.7]} 18... Qb6 {[%clk 0:01:31.3]} 19. Rd7
{[%clk 0:00:36.8]} 19... Nd5 {[%clk 0:01:26.4]} 20. Qxb6 {[%clk 0:00:17.8]}
20... axb6 {[%clk 0:01:25.8]} 21. Rc1 {[%clk 0:00:16.2]} 21... c5 {[%clk
0:01:24.2]} 22. Nd6 {[%clk 0:00:16.4]} 22... Rbd8 {[%clk 0:01:05.7]} 23. Rxd8
{[%clk 0:00:16.7]} 23... Rxd8 {[%clk 0:01:06.6]} 24. Nc4 {[%clk 0:00:16.7]}
24... f6 {[%clk 0:00:35.9]} 25. a4 {[%clk 0:00:15.5]} 25... Kf7 {[%clk 0:00:36]}
26. Kf1 {[%clk 0:00:15.6]} 26... Ke7 {[%clk 0:00:36.4]} 27. Ke2 {[%clk
0:00:16.2]} 27... Kd7 {[%clk 0:00:36.7]} 28. Rd1 {[%clk 0:00:15.3]} 28... Kc6
{[%clk 0:00:35.3]} 29. f4 {[%clk 0:00:15.5]} 29... Rb8 {[%clk 0:00:32.5]} 30.
Ra1 {[%clk 0:00:14.7]} 30... Ra8 {[%clk 0:00:31.6]} 31. b3 {[%clk 0:00:14.1]}
31... Kc7 {[%clk 0:00:28.6]} 32. Rc1 {[%clk 0:00:14]} 32... Nb4 {[%clk
0:00:24.6]} 33. Na3 {[%clk 0:00:14.2]} 33... Kc6 {[%clk 0:00:23]} 34. Rd1 {[%clk
0:00:13.9]} 34... Nd5 {[%clk 0:00:22.8]} 35. Nb5 {[%clk 0:00:13.6]} 35... Re8
{[%clk 0:00:21.7]} 36. Kf3 {[%clk 0:00:14]} 36... h5 {[%clk 0:00:20.6]} 37. Re1
{[%clk 0:00:14.1]} 37... Kd7 {[%clk 0:00:18.6]} 38. h4 {[%clk 0:00:14.3]} 38...
Rc8 {[%clk 0:00:17.7]} 39. Rd1 {[%clk 0:00:14.7]} 39... c4 {[%clk 0:00:17.5]}
40. Nc3 {[%clk 0:00:14.9]} 40... cxb3 {[%clk 0:00:17]} 41. Nxd5 {[%clk
0:00:15.4]} 41... exd5 {[%clk 0:00:17.4]} 42. Rxd5+ {[%clk 0:00:16.3]} 42... Kc6
{[%clk 0:00:15.7]} 43. Rb5 {[%clk 0:00:16.5]} 43... Ra8 {[%clk 0:00:15.3]} 44.
Rb4 {[%clk 0:00:16.5]} 44... Kc5 {[%clk 0:00:14.6]} 45. Rxb3 {[%clk 0:00:16.1]}
45... Rxa4 {[%clk 0:00:14.7]} 46. Re3 {[%clk 0:00:16]} 46... b5 {[%clk
0:00:13.9]} 47. Re7 {[%clk 0:00:16.2]} 47... b4 {[%clk 0:00:13.4]} 48. Rxg7
{[%clk 0:00:16.2]} 48... b3 {[%clk 0:00:13.8]} 49. Rc7+ {[%clk 0:00:16.3]} 49...
Kb6 {[%clk 0:00:12.7]} 50. Rc8 {[%clk 0:00:16.7]} 50... Rb4 {[%clk 0:00:12.3]}
51. Rc1 {[%clk 0:00:15.9]} 51... b2 {[%clk 0:00:11.9]} 52. Rb1 {[%clk
0:00:16.4]} 52... Kc5 {[%clk 0:00:11.1]} 53. g4 {[%clk 0:00:16.6]} 53... Rb3+
{[%clk 0:00:10.9]} 54. Ke4 {[%clk 0:00:17.2]} 54... hxg4 {[%clk 0:00:11.8]} 55.
Kf5 {[%clk 0:00:17.7]} 55... Kc4 {[%clk 0:00:11.1]} 56. h5 {[%clk 0:00:14.5]}
56... Kc3 {[%clk 0:00:09.2]} 57. h6 {[%clk 0:00:14.4]} 57... Kc2 {[%clk
0:00:07.6]} 58. Rh1 {[%clk 0:00:14.2]} 58... b1=Q {[%clk 0:00:07.4]} 59. Rxb1
{[%clk 0:00:12.2]} 59... Rxb1 {[%clk 0:00:08.3]} 60. Kxf6 {[%clk 0:00:09.8]}
60... Kd3 {[%clk 0:00:08.6]} 61. h7 {[%clk 0:00:09.9]} 61... Rh1 {[%clk
0:00:07.7]} 62. Kg7 {[%clk 0:00:09.8]} 62... Ke4 {[%clk 0:00:07.5]} 63. h8=Q
{[%clk 0:00:09.6]} 63... Rxh8 {[%clk 0:00:07.4]} 64. Kxh8 {[%clk 0:00:10.5]}
64... Kxf4 {[%clk 0:00:08.3]} 65. Kg7 {[%clk 0:00:11.4]} 65... Kf3 {[%clk
0:00:08.8]} 0-1

[Event "*** Titled Tuesday Blitz"]
[Site "Chess.com"]
[Date "2020.05.05"]
[Round "7"]
[White "MikhailovViacheslav"]
[Black "Harsha_Bharathakoti"]
[Result "1/2-1/2"]
[WhiteElo "2635"]
[BlackElo "2825"]
[TimeControl "180+1"]
[EndTime "11:19:57 PDT"]
[Termination "Game drawn by repetition"]

1. Nf3 {[%clk 0:02:59.5]} 1... d5 {[%clk 0:02:59.6]} 2. g3 {[%clk 0:02:59.2]}
2... Nf6 {[%clk 0:03:00.3]} 3. Bg2 {[%clk 0:02:59.3]} 3... c5 {[%clk 0:02:57.2]}
4. O-O {[%clk 0:02:59.3]} 4... Nc6 {[%clk 0:02:57.9]} 5. d4 {[%clk 0:02:59.3]}
5... e6 {[%clk 0:02:40.9]} 6. c4 {[%clk 0:02:57.9]} 6... dxc4 {[%clk 0:02:41.4]}
7. dxc5 {[%clk 0:02:54.2]} 7... Qxd1 {[%clk 0:02:33.9]} 8. Rxd1 {[%clk
0:02:54.1]} 8... Bxc5 {[%clk 0:02:34.7]} 9. Nbd2 {[%clk 0:02:50.3]} 9... c3
{[%clk 0:02:34.9]} 10. bxc3 {[%clk 0:02:50.3]} 10... Bd7 {[%clk 0:02:30]} 11. a4
{[%clk 0:02:43.4]} 11... O-O {[%clk 0:02:10.6]} 12. a5 {[%clk 0:02:40.2]} 12...
Rac8 {[%clk 0:01:52.8]} 13. Ne1 {[%clk 0:02:39.8]} 13... Rfd8 {[%clk 0:01:42.9]}
14. Nd3 {[%clk 0:02:38.1]} 14... Be7 {[%clk 0:01:43.5]} 15. Ba3 {[%clk
0:02:35.2]} 15... Rc7 {[%clk 0:01:34]} 16. Rdb1 {[%clk 0:02:34.6]} 16... Bc8
{[%clk 0:01:27.9]} 17. Bxc6 {[%clk 0:02:27.5]} 17... Bxa3 {[%clk 0:01:23.2]} 18.
Bxb7 {[%clk 0:02:22.6]} 18... Rxc3 {[%clk 0:01:23.5]} 19. Bxc8 {[%clk
0:02:14.9]} 19... Rdxc8 {[%clk 0:01:24.4]} 20. Rb7 {[%clk 0:02:09.8]} 20... Bc5
{[%clk 0:01:11]} 21. Nxc5 {[%clk 0:02:07.4]} 21... R3xc5 {[%clk 0:01:11.9]} 22.
Rxa7 {[%clk 0:02:04.2]} 22... Rc2 {[%clk 0:01:12.6]} 23. Nb3 {[%clk 0:02:00.7]}
23... Rxe2 {[%clk 0:01:12.2]} 24. a6 {[%clk 0:01:57.2]} 24... Rb2 {[%clk
0:00:28.3]} 25. Rb7 {[%clk 0:01:54.6]} 25... Nd7 {[%clk 0:00:29]} 26. a7 {[%clk
0:01:52.1]} 26... Ra8 {[%clk 0:00:29.2]} 27. Rxd7 {[%clk 0:01:46.5]} 27... Rxb3
{[%clk 0:00:29.2]} 28. Rd8+ {[%clk 0:01:40.7]} 28... Rxd8 {[%clk 0:00:29.7]} 29.
a8=Q {[%clk 0:01:40.7]} 29... Rd3 {[%clk 0:00:30.4]} 30. Qb7 {[%clk 0:01:36.9]}
30... Rd1+ {[%clk 0:00:28.2]} 31. Rxd1 {[%clk 0:01:35.4]} 31... Rxd1+ {[%clk
0:00:29.1]} 32. Kg2 {[%clk 0:01:35.6]} 32... g6 {[%clk 0:00:19.6]} 33. g4 {[%clk
0:01:30.6]} 33... Rd5 {[%clk 0:00:19]} 34. h4 {[%clk 0:01:28.5]} 34... h5 {[%clk
0:00:19.3]} 35. Qb8+ {[%clk 0:01:25.1]} 35... Kg7 {[%clk 0:00:19.3]} 36. g5
{[%clk 0:01:22.9]} 36... Rf5 {[%clk 0:00:18.9]} 37. Qb2+ {[%clk 0:01:22.2]}
37... Kg8 {[%clk 0:00:18.9]} 38. Qc3 {[%clk 0:01:20.5]} 38... Kh7 {[%clk
0:00:19.1]} 39. f3 {[%clk 0:01:19.5]} 39... Kg8 {[%clk 0:00:20]} 40. Kg3 {[%clk
0:01:18.7]} 40... Kh7 {[%clk 0:00:20.9]} 41. Qc8 {[%clk 0:01:16.7]} 41... Kg7
{[%clk 0:00:21.2]} 42. Qd8 {[%clk 0:01:16.3]} 42... Rd5 {[%clk 0:00:21.4]} 43.
Qf6+ {[%clk 0:01:16.3]} 43... Kg8 {[%clk 0:00:22.1]} 44. Qe7 {[%clk 0:01:15.9]}
44... Rf5 {[%clk 0:00:23]} 45. Kf2 {[%clk 0:01:15.1]} 45... Kg7 {[%clk
0:00:23.9]} 46. Ke3 {[%clk 0:01:14.7]} 46... Rd5 {[%clk 0:00:24.6]} 47. f4
{[%clk 0:01:13.4]} 47... Rf5 {[%clk 0:00:24.9]} 48. Qc7 {[%clk 0:01:13.2]} 48...
Kg8 {[%clk 0:00:25.2]} 49. Ke4 {[%clk 0:01:10.7]} 49... Kg7 {[%clk 0:00:24.1]}
50. Qc3+ {[%clk 0:01:10.1]} 50... Kg8 {[%clk 0:00:24.2]} 51. Qd4 {[%clk
0:01:09.4]} 51... Kh7 {[%clk 0:00:21.6]} 52. Qd8 {[%clk 0:01:04]} 52... Kg7
{[%clk 0:00:21.9]} 53. Qd7 {[%clk 0:01:03.8]} 53... Kg8 {[%clk 0:00:21.7]} 54.
Qd8+ {[%clk 0:01:02]} 54... Kg7 {[%clk 0:00:22.2]} 55. Qe8 {[%clk 0:01:02.3]}
55... Rd5 {[%clk 0:00:21.6]} 56. Qb8 {[%clk 0:01:00.8]} 56... Rf5 {[%clk
0:00:20.9]} 57. Qa8 {[%clk 0:00:59.1]} 57... Rd5 {[%clk 0:00:13]} 58. Qa1+
{[%clk 0:00:45]} 58... Kg8 {[%clk 0:00:11.6]} 59. Qa8+ {[%clk 0:00:37.7]} 59...
Kg7 {[%clk 0:00:11.6]} 60. Qb7 {[%clk 0:00:28.6]} 60... Kg8 {[%clk 0:00:11.5]}
61. Qc8+ {[%clk 0:00:27.1]} 61... Kg7 {[%clk 0:00:11.6]} 62. Qc6 {[%clk
0:00:27.3]} 62... Rf5 {[%clk 0:00:12.5]} 63. Qc3+ {[%clk 0:00:26.8]} 63... Kg8
{[%clk 0:00:12.7]} 64. Qb2 {[%clk 0:00:25.3]} 64... Rd5 {[%clk 0:00:12.8]} 65.
Qf6 {[%clk 0:00:25.1]} 65... Rf5 {[%clk 0:00:12.8]} 66. Qd8+ {[%clk 0:00:18.6]}
66... Kg7 {[%clk 0:00:13.3]} 1/2-1/2

[Event "*** Titled Tuesday Blitz"]
[Site "Chess.com"]
[Date "2020.05.05"]
[Round "7"]
[White "VojtechPlat"]
[Black "Micki-taryan"]
[Result "0-1"]
[WhiteElo "2791"]
[BlackElo "3072"]
[TimeControl "180+1"]
[EndTime "11:20:00 PDT"]
[Termination "Micki-taryan won by resignation"]

1. e4 {[%clk 0:03:00.9]} 1... c5 {[%clk 0:02:59.8]} 2. Nf3 {[%clk 0:03:00.7]}
2... Nc6 {[%clk 0:03:00.5]} 3. c3 {[%clk 0:03:00]} 3... d6 {[%clk 0:02:58.5]} 4.
d4 {[%clk 0:02:59.7]} 4... Qc7 {[%clk 0:02:59]} 5. d5 {[%clk 0:02:58.6]} 5...
Nb8 {[%clk 0:02:58.2]} 6. Be3 {[%clk 0:02:57.8]} 6... Bg4 {[%clk 0:02:57.7]} 7.
Nbd2 {[%clk 0:02:57.7]} 7... Nd7 {[%clk 0:02:58]} 8. Qb3 {[%clk 0:02:56.3]} 8...
Ngf6 {[%clk 0:02:54.7]} 9. a4 {[%clk 0:02:55]} 9... g6 {[%clk 0:02:50.4]} 10. a5
{[%clk 0:02:53.1]} 10... Bg7 {[%clk 0:02:49.4]} 11. Bd3 {[%clk 0:02:52.9]} 11...
O-O {[%clk 0:02:48.3]} 12. h3 {[%clk 0:02:53.1]} 12... Bxf3 {[%clk 0:02:48.2]}
13. Nxf3 {[%clk 0:02:53.2]} 13... c4 {[%clk 0:02:38.8]} 14. Qxc4 {[%clk
0:02:52.7]} 14... Qxc4 {[%clk 0:02:39]} 15. Bxc4 {[%clk 0:02:52.9]} 15... Nxe4
{[%clk 0:02:39.9]} 16. Ke2 {[%clk 0:02:52.6]} 16... Rfc8 {[%clk 0:02:38.1]} 17.
Bd3 {[%clk 0:02:47.7]} 17... Nef6 {[%clk 0:02:38.1]} 18. c4 {[%clk 0:02:47.4]}
18... b5 {[%clk 0:02:24.9]} 19. cxb5 {[%clk 0:02:36.3]} 19... Nxd5 {[%clk
0:02:25]} 20. Rab1 {[%clk 0:02:14.3]} 20... Nxe3 {[%clk 0:02:22.7]} 21. Kxe3
{[%clk 0:02:13.6]} 21... Nc5 {[%clk 0:02:20.1]} 22. Bc4 {[%clk 0:02:08.4]} 22...
Rab8 {[%clk 0:02:17.2]} 23. Nd4 {[%clk 0:01:03.2]} 23... Nd7 {[%clk 0:00:57]}
24. Nc6 {[%clk 0:00:58.5]} 24... Ne5 {[%clk 0:00:56.4]} 25. Bd5 {[%clk
0:00:31.4]} 25... Nxc6 {[%clk 0:00:47.4]} 26. Bxc6 {[%clk 0:00:31.3]} 26... a6
{[%clk 0:00:45.6]} 27. Kd3 {[%clk 0:00:31.5]} 27... axb5 {[%clk 0:00:46]} 28.
Rhc1 {[%clk 0:00:30.7]} 28... Rc7 {[%clk 0:00:41]} 29. Bd5 {[%clk 0:00:19.7]}
29... Ra7 {[%clk 0:00:28.6]} 30. b4 {[%clk 0:00:19.2]} 30... e6 {[%clk
0:00:29.2]} 31. Bf3 {[%clk 0:00:19.2]} 31... d5 {[%clk 0:00:30]} 32. Rc6 {[%clk
0:00:19.2]} 32... Bf8 {[%clk 0:00:29.6]} 33. Be2 {[%clk 0:00:18.6]} 33... Kg7
{[%clk 0:00:29.7]} 34. Kd2 {[%clk 0:00:18.6]} 34... Kf6 {[%clk 0:00:29.5]} 35.
Kc3 {[%clk 0:00:18.9]} 35... Ke7 {[%clk 0:00:29.1]} 36. Kb3 {[%clk 0:00:19.2]}
36... Kd7 {[%clk 0:00:18.4]} 37. Rbc1 {[%clk 0:00:19.3]} 37... Bd6 {[%clk
0:00:19]} 38. Rb6 {[%clk 0:00:18.8]} 38... Rxb6 {[%clk 0:00:19.2]} 39. axb6
{[%clk 0:00:18.8]} 39... Rb7 {[%clk 0:00:19.8]} 40. Bxb5+ {[%clk 0:00:18.8]}
40... Ke7 {[%clk 0:00:19.2]} 41. Rc6 {[%clk 0:00:19.2]} 41... Be5 {[%clk
0:00:18.5]} 42. Ba6 {[%clk 0:00:19.4]} 42... Rb8 {[%clk 0:00:19]} 43. b7 {[%clk
0:00:19.8]} 43... d4 {[%clk 0:00:19.4]} 44. Rc8 {[%clk 0:00:19.8]} 44... Bd6
{[%clk 0:00:19.3]} 45. Kc4 {[%clk 0:00:19.5]} 45... e5 {[%clk 0:00:19.7]} 46.
Kd3 {[%clk 0:00:18.9]} 46... f5 {[%clk 0:00:19.7]} 47. f3 {[%clk 0:00:19.2]}
47... Kd7 {[%clk 0:00:20.1]} 48. Bb5+ {[%clk 0:00:19.4]} 48... Ke7 {[%clk
0:00:17.8]} 49. Bc6 {[%clk 0:00:19.9]} 49... h5 {[%clk 0:00:17.1]} 50. b5 {[%clk
0:00:20.1]} 50... h4 {[%clk 0:00:17.7]} 51. Kc4 {[%clk 0:00:19.8]} 51... Ke6
{[%clk 0:00:18]} 52. Bd5+ {[%clk 0:00:19.2]} 52... Kd7 {[%clk 0:00:18.9]} 53.
Bc6+ {[%clk 0:00:19.7]} 53... Ke6 {[%clk 0:00:19.5]} 54. Kd3 {[%clk 0:00:19.9]}
54... Ke7 {[%clk 0:00:18]} 55. Bd5 {[%clk 0:00:19.2]} 55... Kd7 {[%clk
0:00:17.9]} 56. Bc6+ {[%clk 0:00:18.6]} 56... Ke6 {[%clk 0:00:18.2]} 57. b6
{[%clk 0:00:18.8]} 57... Ke7 {[%clk 0:00:16.6]} 58. Bd5 {[%clk 0:00:18.8]} 58...
Kd7 {[%clk 0:00:17.5]} 59. Bf7 {[%clk 0:00:17.7]} 59... g5 {[%clk 0:00:15.3]}
60. Bg6 {[%clk 0:00:16.7]} 60... Ke6 {[%clk 0:00:14.6]} 61. Be8 {[%clk
0:00:14.6]} 61... Rxb7 {[%clk 0:00:14.6]} 62. Rc6 {[%clk 0:00:12]} 62... Kd5
{[%clk 0:00:14.9]} 63. Rc1 {[%clk 0:00:07.1]} 63... e4+ {[%clk 0:00:15.3]} 64.
fxe4+ {[%clk 0:00:06.7]} 64... fxe4+ {[%clk 0:00:16.2]} 0-1